[Event "Early-Titled-Tuesday-Blitz-February-13-2024"]
[Site "Chess.com"]
[Date "2024.02.13"]
[Round "6"]
[White "vi_pranav"]
[Black "DanielDardha2005"]
[Result "1-0"]
[WhiteElo "3054"]
[BlackElo "2909"]
[TimeControl "180+1"]
[EndTime "9:11:22 PST"]
[Termination "vi_pranav won by resignation"]

1. e4 {[%clk 0:03:00.9]} 1... c6 {[%clk 0:02:58.8]} 2. d4 {[%clk 0:03:00]} 2...
d5 {[%clk 0:02:58.8]} 3. e5 {[%clk 0:03:00.8]} 3... Bf5 {[%clk 0:02:57.6]} 4.
Nf3 {[%clk 0:03:00.8]} 4... e6 {[%clk 0:02:57.6]} 5. Be2 {[%clk 0:03:01.4]} 5...
c5 {[%clk 0:02:58]} 6. c3 {[%clk 0:03:00.4]} 6... Nc6 {[%clk 0:02:58]} 7. O-O
{[%clk 0:03:00.4]} 7... Bg6 {[%clk 0:02:56.5]} 8. a3 {[%clk 0:02:50.8]} 8...
cxd4 {[%clk 0:02:52.1]} 9. cxd4 {[%clk 0:02:51.2]} 9... Nge7 {[%clk 0:02:51.6]}
10. Nc3 {[%clk 0:02:49.6]} 10... Bh5 {[%clk 0:02:46.1]} 11. Nh4 {[%clk
0:02:45.1]} 11... Bxe2 {[%clk 0:02:45.3]} 12. Nxe2 {[%clk 0:02:46]} 12... Nc8
{[%clk 0:02:43.2]} 13. g3 {[%clk 0:02:44.7]} 13... Be7 {[%clk 0:02:43.1]} 14.
Nf3 {[%clk 0:02:44.5]} 14... a5 {[%clk 0:02:40.8]} 15. h4 {[%clk 0:02:44.1]}
15... a4 {[%clk 0:02:38]} 16. Kg2 {[%clk 0:02:39.4]} 16... b5 {[%clk 0:02:37.7]}
17. Nc3 {[%clk 0:02:31.4]} 17... Qa5 {[%clk 0:02:32.5]} 18. Qd3 {[%clk
0:02:25.4]} 18... Rb8 {[%clk 0:02:25.4]} 19. Bg5 {[%clk 0:02:24.1]} 19... h6
{[%clk 0:02:17]} 20. Bxe7 {[%clk 0:02:12.3]} 20... N8xe7 {[%clk 0:02:17.1]} 21.
Rfc1 {[%clk 0:02:12.8]} 21... O-O {[%clk 0:02:15.8]} 22. Ne2 {[%clk 0:02:12.8]}
22... b4 {[%clk 0:02:15.9]} 23. Rc5 {[%clk 0:01:54.8]} 23... Qa7 {[%clk
0:02:11.6]} 24. Rac1 {[%clk 0:01:50.9]} 24... bxa3 {[%clk 0:02:11.8]} 25. bxa3
{[%clk 0:01:51.8]} 25... Rb3 {[%clk 0:02:10.7]} 26. R1c3 {[%clk 0:01:48.5]}
26... Rfb8 {[%clk 0:02:07.2]} 27. Nc1 {[%clk 0:01:44.7]} 27... Rxc3 {[%clk
0:01:56.6]} 28. Qxc3 {[%clk 0:01:44.9]} 28... Qb6 {[%clk 0:01:56]} 29. Ne2
{[%clk 0:01:42.6]} 29... Rc8 {[%clk 0:01:37.6]} 30. Nf4 {[%clk 0:01:28.1]} 30...
Qb3 {[%clk 0:01:29.3]} 31. Qc1 {[%clk 0:01:26.8]} 31... Kh7 {[%clk 0:01:15.6]}
32. Rc3 {[%clk 0:01:22.4]} 32... Qb5 {[%clk 0:01:10]} 33. Rc5 {[%clk 0:01:04.4]}
33... Qb3 {[%clk 0:01:09.3]} 34. h5 {[%clk 0:01:04.5]} 34... Na7 {[%clk
0:00:49.3]} 35. Nd2 {[%clk 0:00:56.5]} 35... Qb6 {[%clk 0:00:40.6]} 36. Qc2+
{[%clk 0:00:54]} 36... Kg8 {[%clk 0:00:39.9]} 37. Qxa4 {[%clk 0:00:46.2]} 37...
Nac6 {[%clk 0:00:23.3]} 38. Nf3 {[%clk 0:00:46]} 38... Rb8 {[%clk 0:00:22.9]}
39. Qc2 {[%clk 0:00:37.8]} 39... Ra8 {[%clk 0:00:22.8]} 40. Qc3 {[%clk 0:00:33]}
40... Na5 {[%clk 0:00:19.1]} 41. Nd2 {[%clk 0:00:28.2]} 41... Nf5 {[%clk
0:00:14.8]} 42. g4 {[%clk 0:00:23.7]} 42... Ne7 {[%clk 0:00:09.9]} 43. Qb4
{[%clk 0:00:22.9]} 43... Qa7 {[%clk 0:00:08.8]} 44. Nf3 {[%clk 0:00:19.3]} 44...
Nc4 {[%clk 0:00:08.4]} 45. Rb5 {[%clk 0:00:14.8]} 45... Qxa3 {[%clk 0:00:07.6]}
46. Rb8+ {[%clk 0:00:08.2]} 46... Rxb8 {[%clk 0:00:07.7]} 47. Qxb8+ {[%clk
0:00:09.1]} 47... Kh7 {[%clk 0:00:08.2]} 48. g5 {[%clk 0:00:09.8]} 48... Qa6
{[%clk 0:00:02.3]} 49. Qe8 {[%clk 0:00:09.5]} 49... Qb7 {[%clk 0:00:01.4]} 50.
g6+ {[%clk 0:00:07.7]} 50... fxg6 {[%clk 0:00:01.6]} 51. hxg6+ {[%clk
0:00:08.6]} 51... Nxg6 {[%clk 0:00:02.1]} 52. Qxg6+ {[%clk 0:00:09.2]} 52... Kh8
{[%clk 0:00:02.8]} 53. Qe8+ {[%clk 0:00:09.7]} 53... Kh7 {[%clk 0:00:03]} 54.
Qg6+ {[%clk 0:00:10]} 54... Kh8 {[%clk 0:00:03.2]} 55. Qxe6 {[%clk 0:00:10.9]}
55... Nb6 {[%clk 0:00:02.7]} 56. Nh4 {[%clk 0:00:08.9]} 56... Kh7 {[%clk
0:00:02]} 57. Qf5+ {[%clk 0:00:08.9]} 57... Kg8 {[%clk 0:00:02.6]} 58. Nhg6
{[%clk 0:00:08.8]} 58... Nc8 {[%clk 0:00:02.4]} 59. Qxc8+ {[%clk 0:00:08.4]}
59... Qxc8 {[%clk 0:00:03]} 60. Ne7+ {[%clk 0:00:08.9]} 1-0

[Event "Early-Titled-Tuesday-Blitz-February-13-2024"]
[Site "Chess.com"]
[Date "2024.02.13"]
[Round "6"]
[White "edgarhay012"]
[Black "sokidze"]
[Result "0-1"]
[WhiteElo "2622"]
[BlackElo "2831"]
[TimeControl "180+1"]
[EndTime "9:11:24 PST"]
[Termination "sokidze won by resignation"]

1. e4 {[%clk 0:03:00.9]} 1... c6 {[%clk 0:02:59.2]} 2. d4 {[%clk 0:03:01]} 2...
d5 {[%clk 0:02:59.3]} 3. Nc3 {[%clk 0:03:01.8]} 3... dxe4 {[%clk 0:02:59.2]} 4.
Nxe4 {[%clk 0:03:02.7]} 4... Bf5 {[%clk 0:02:59.8]} 5. Ng3 {[%clk 0:03:03.1]}
5... Bg6 {[%clk 0:03:00.5]} 6. h4 {[%clk 0:03:03.9]} 6... h6 {[%clk 0:03:00.9]}
7. h5 {[%clk 0:03:04.4]} 7... Bh7 {[%clk 0:03:01.2]} 8. Nf3 {[%clk 0:03:05.2]}
8... e6 {[%clk 0:03:01.2]} 9. Bd3 {[%clk 0:03:05.8]} 9... Bxd3 {[%clk
0:03:01.6]} 10. Qxd3 {[%clk 0:03:06.7]} 10... Nf6 {[%clk 0:03:01.7]} 11. Bd2
{[%clk 0:03:07.2]} 11... Be7 {[%clk 0:02:46]} 12. O-O-O {[%clk 0:03:06.4]} 12...
c5 {[%clk 0:02:46.5]} 13. Be3 {[%clk 0:03:00.3]} 13... Nc6 {[%clk 0:02:34.2]}
14. dxc5 {[%clk 0:02:51.4]} 14... Qa5 {[%clk 0:02:34.4]} 15. Kb1 {[%clk
0:02:51.7]} 15... Bxc5 {[%clk 0:02:17.2]} 16. Ne4 {[%clk 0:01:23.5]} 16... Nxe4
{[%clk 0:01:56.6]} 17. Qxe4 {[%clk 0:01:21.9]} 17... Bxe3 {[%clk 0:01:41.9]} 18.
Qxe3 {[%clk 0:01:22.8]} 18... O-O {[%clk 0:01:42.1]} 19. Rd7 {[%clk 0:01:18.5]}
19... Nb4 {[%clk 0:01:33]} 20. a3 {[%clk 0:01:12.5]} 20... Nd5 {[%clk
0:01:31.9]} 21. Qb3 {[%clk 0:01:04.5]} 21... b5 {[%clk 0:01:18.8]} 22. Ne5
{[%clk 0:01:00.2]} 22... Rac8 {[%clk 0:01:13.3]} 23. Rd1 {[%clk 0:00:46.3]}
23... Rc7 {[%clk 0:01:10.2]} 24. Rxc7 {[%clk 0:00:45.1]} 24... Qxc7 {[%clk
0:01:11.1]} 25. Nf3 {[%clk 0:00:39.1]} 25... Rc8 {[%clk 0:01:07.9]} 26. Rd2
{[%clk 0:00:39.1]} 26... a6 {[%clk 0:01:05.6]} 27. g3 {[%clk 0:00:39.2]} 27...
Nf6 {[%clk 0:00:51.2]} 28. Qd3 {[%clk 0:00:20.2]} 28... Nxh5 {[%clk 0:00:49.4]}
29. Qd6 {[%clk 0:00:19.1]} 29... Qb7 {[%clk 0:00:40]} 30. Ne5 {[%clk 0:00:18.1]}
30... Nf6 {[%clk 0:00:40.5]} 31. f3 {[%clk 0:00:13.5]} 31... Nd5 {[%clk
0:00:37.7]} 32. g4 {[%clk 0:00:10.4]} 32... Qc7 {[%clk 0:00:31.2]} 33. Qxc7
{[%clk 0:00:08.4]} 33... Rxc7 {[%clk 0:00:31.4]} 34. Nd3 {[%clk 0:00:06.2]}
34... Rc4 {[%clk 0:00:24.3]} 35. Re2 {[%clk 0:00:05.5]} 35... Nf4 {[%clk
0:00:17.5]} 36. Rd2 {[%clk 0:00:04.9]} 36... Nxd3 {[%clk 0:00:16.6]} 37. Rxd3
{[%clk 0:00:05.8]} 37... Rc6 {[%clk 0:00:10.2]} 38. c3 {[%clk 0:00:04.8]} 38...
g6 {[%clk 0:00:10.6]} 39. Kc2 {[%clk 0:00:05.3]} 39... Kg7 {[%clk 0:00:10.7]}
40. Kd2 {[%clk 0:00:05.8]} 40... f5 {[%clk 0:00:09.3]} 41. Ke3 {[%clk
0:00:05.8]} 41... Kf6 {[%clk 0:00:09.4]} 42. Kf4 {[%clk 0:00:04.9]} 42... e5+
{[%clk 0:00:08.3]} 43. Ke3 {[%clk 0:00:05.4]} 43... h5 {[%clk 0:00:05.5]} 44.
gxh5 {[%clk 0:00:04.4]} 44... gxh5 {[%clk 0:00:06.4]} 45. Rd8 {[%clk 0:00:04.8]}
45... Kg5 {[%clk 0:00:06.6]} 46. Rg8+ {[%clk 0:00:04.3]} 46... Rg6 {[%clk
0:00:06.8]} 47. Rf8 {[%clk 0:00:03.9]} 47... h4 {[%clk 0:00:06.7]} 48. Kf2
{[%clk 0:00:04.1]} 48... Rh6 {[%clk 0:00:04.1]} 49. Rg8+ {[%clk 0:00:04.3]}
49... Kf4 {[%clk 0:00:04.6]} 50. Rg1 {[%clk 0:00:04.3]} 50... h3 {[%clk
0:00:04.9]} 51. Rh1 {[%clk 0:00:04.8]} 51... h2 {[%clk 0:00:05.6]} 52. b3 {[%clk
0:00:04.4]} 52... Rh3 {[%clk 0:00:05.5]} 53. Ke2 {[%clk 0:00:04.7]} 53... Rxf3
{[%clk 0:00:05.1]} 54. Rxh2 {[%clk 0:00:05]} 54... Rxc3 {[%clk 0:00:05.8]} 55.
Rh6 {[%clk 0:00:05]} 55... Rxb3 {[%clk 0:00:05.6]} 56. Rxa6 {[%clk 0:00:05.6]}
56... e4 {[%clk 0:00:05.8]} 57. Ra5 {[%clk 0:00:05.9]} 57... Rb2+ {[%clk
0:00:06.2]} 58. Kd1 {[%clk 0:00:06.6]} 58... Ke3 {[%clk 0:00:06.7]} 59. a4
{[%clk 0:00:06]} 59... bxa4 {[%clk 0:00:04.9]} 60. Rxf5 {[%clk 0:00:06]} 60...
a3 {[%clk 0:00:05.5]} 61. Ra5 {[%clk 0:00:06.3]} 61... a2 {[%clk 0:00:06]} 62.
Kc1 {[%clk 0:00:06.8]} 62... Rb1+ {[%clk 0:00:06.6]} 63. Kc2 {[%clk 0:00:06.7]}
63... a1=Q {[%clk 0:00:05.6]} 0-1

[Event "Early-Titled-Tuesday-Blitz-February-13-2024"]
[Site "Chess.com"]
[Date "2024.02.13"]
[Round "6"]
[White "HeroWilczek"]
[Black "M1711"]
[Result "1/2-1/2"]
[WhiteElo "2488"]
[BlackElo "2644"]
[TimeControl "180+1"]
[EndTime "9:11:27 PST"]
[Termination "Game drawn by repetition"]

1. e4 {[%clk 0:02:56.7]} 1... e6 {[%clk 0:02:58.9]} 2. d3 {[%clk 0:02:56.8]}
2... Nc6 {[%clk 0:02:56.2]} 3. Nf3 {[%clk 0:02:54.2]} 3... a6 {[%clk 0:02:56.5]}
4. g3 {[%clk 0:02:51.8]} 4... Be7 {[%clk 0:02:55.4]} 5. Bg2 {[%clk 0:02:52.3]}
5... g5 {[%clk 0:02:53.7]} 6. Nc3 {[%clk 0:02:45.1]} 6... h5 {[%clk 0:02:48.8]}
7. h4 {[%clk 0:02:43]} 7... g4 {[%clk 0:02:48.5]} 8. Ng1 {[%clk 0:02:37.6]} 8...
Nf6 {[%clk 0:02:45]} 9. Nge2 {[%clk 0:02:37.6]} 9... d5 {[%clk 0:02:44.6]} 10.
exd5 {[%clk 0:02:36.2]} 10... exd5 {[%clk 0:02:44.4]} 11. Bg5 {[%clk 0:02:36.8]}
11... d4 {[%clk 0:02:34.9]} 12. Ne4 {[%clk 0:02:29.6]} 12... Nxe4 {[%clk
0:02:34.3]} 13. Bxe7 {[%clk 0:02:25.8]} 13... Qxe7 {[%clk 0:02:29]} 14. Bxe4
{[%clk 0:02:25.4]} 14... Bd7 {[%clk 0:02:23.7]} 15. Qd2 {[%clk 0:02:21.1]} 15...
O-O-O {[%clk 0:02:15.3]} 16. O-O-O {[%clk 0:02:20.4]} 16... f5 {[%clk
0:02:06.6]} 17. Bg2 {[%clk 0:02:16.6]} 17... Qc5 {[%clk 0:01:59.6]} 18. Rhe1
{[%clk 0:02:06.8]} 18... Be6 {[%clk 0:01:54.2]} 19. a3 {[%clk 0:01:58.2]} 19...
Bd5 {[%clk 0:01:32.9]} 20. Bxd5 {[%clk 0:01:51.5]} 20... Qxd5 {[%clk 0:01:33.1]}
21. Kb1 {[%clk 0:01:38.3]} 21... Ne5 {[%clk 0:01:17.2]} 22. Nf4 {[%clk 0:01:37]}
22... Qd6 {[%clk 0:01:14.8]} 23. Rxe5 {[%clk 0:01:31.7]} 23... Qxe5 {[%clk
0:01:13.5]} 24. Ng6 {[%clk 0:01:32.2]} 24... Qb5 {[%clk 0:01:05]} 25. Nxh8
{[%clk 0:01:24.3]} 25... Rxh8 {[%clk 0:01:05.9]} 26. Re1 {[%clk 0:01:08.1]}
26... Re8 {[%clk 0:01:05.2]} 27. Re2 {[%clk 0:01:02.6]} 27... Rxe2 {[%clk
0:00:46.2]} 28. Qxe2 {[%clk 0:01:03.5]} 28... Kd7 {[%clk 0:00:46]} 29. Qd2
{[%clk 0:00:48.2]} 29... Qe5 {[%clk 0:00:43.8]} 30. Qh6 {[%clk 0:00:46.5]} 30...
Qe1+ {[%clk 0:00:40.5]} 31. Ka2 {[%clk 0:00:45.9]} 31... Qxf2 {[%clk 0:00:39.8]}
32. Qxh5 {[%clk 0:00:41.9]} 32... Kc6 {[%clk 0:00:20.7]} 33. Qg6+ {[%clk
0:00:37.8]} 33... Kc5 {[%clk 0:00:18.2]} 34. h5 {[%clk 0:00:34.5]} 34... Qxg3
{[%clk 0:00:13.1]} 35. Qxf5+ {[%clk 0:00:33.4]} 35... Kb6 {[%clk 0:00:13.6]} 36.
h6 {[%clk 0:00:32.2]} 36... Qh4 {[%clk 0:00:12.3]} 37. h7 {[%clk 0:00:24.4]}
37... g3 {[%clk 0:00:09.3]} 38. Qg6+ {[%clk 0:00:16.6]} 38... c6 {[%clk
0:00:09]} 39. Qg7 {[%clk 0:00:15.7]} 39... g2 {[%clk 0:00:07.9]} 40. h8=Q {[%clk
0:00:11.8]} 40... Qxh8 {[%clk 0:00:06]} 41. Qxh8 {[%clk 0:00:12.7]} 41... g1=Q
{[%clk 0:00:06.7]} 42. Qd8+ {[%clk 0:00:13]} 42... Ka7 {[%clk 0:00:06.3]} 43.
Qd6 {[%clk 0:00:13.7]} 43... Qg7 {[%clk 0:00:02.6]} 44. Qc5+ {[%clk 0:00:13.4]}
44... Kb8 {[%clk 0:00:03.3]} 45. Qd6+ {[%clk 0:00:12.5]} 45... Kc8 {[%clk
0:00:03.3]} 46. Qe6+ {[%clk 0:00:12.5]} 46... Qd7 {[%clk 0:00:03]} 47. Qe4
{[%clk 0:00:12.6]} 47... Qd6 {[%clk 0:00:03]} 48. b3 {[%clk 0:00:12]} 48... Qc5
{[%clk 0:00:03.2]} 49. Qg4+ {[%clk 0:00:10.4]} 49... Kb8 {[%clk 0:00:03.3]} 50.
Qf4+ {[%clk 0:00:10.7]} 50... Ka7 {[%clk 0:00:03.3]} 51. Kb2 {[%clk 0:00:11.3]}
51... Qc3+ {[%clk 0:00:03.5]} 52. Kb1 {[%clk 0:00:11.8]} 52... Qe1+ {[%clk
0:00:03.7]} 53. Kb2 {[%clk 0:00:12.4]} 53... Qc3+ {[%clk 0:00:03.1]} 54. Kb1
{[%clk 0:00:10.9]} 54... a5 {[%clk 0:00:03.4]} 55. a4 {[%clk 0:00:10.5]} 55...
Qc5 {[%clk 0:00:03.5]} 56. Qe4 {[%clk 0:00:09]} 56... Qb4 {[%clk 0:00:03.6]} 57.
Kb2 {[%clk 0:00:08.8]} 57... Ka6 {[%clk 0:00:04.1]} 58. Qe5 {[%clk 0:00:08.6]}
58... Qc3+ {[%clk 0:00:04.2]} 59. Kb1 {[%clk 0:00:08.8]} 59... Kb6 {[%clk
0:00:05.1]} 60. Qe8 {[%clk 0:00:07.9]} 60... Ka7 {[%clk 0:00:04.1]} 61. Qd8
{[%clk 0:00:06.5]} 61... Qc5 {[%clk 0:00:04]} 62. Qd7 {[%clk 0:00:05.8]} 62...
Kb6 {[%clk 0:00:03.8]} 63. Qd8+ {[%clk 0:00:06.1]} 63... Ka7 {[%clk 0:00:04.4]}
64. Qd7 {[%clk 0:00:06.8]} 64... Qb6 {[%clk 0:00:03.4]} 65. Qd6 {[%clk
0:00:06.5]} 65... Ka6 {[%clk 0:00:02.3]} 66. Qd7 {[%clk 0:00:06.3]} 66... Qc5
{[%clk 0:00:02.6]} 67. Qc8 {[%clk 0:00:06]} 67... Ka7 {[%clk 0:00:02.8]} 68. Qd7
{[%clk 0:00:06.2]} 1/2-1/2

[Event "Early-Titled-Tuesday-Blitz-February-13-2024"]
[Site "Chess.com"]
[Date "2024.02.13"]
[Round "6"]
[White "giomar27"]
[Black "Sl4werThanYou"]
[Result "1/2-1/2"]
[WhiteElo "2477"]
[BlackElo "2638"]
[TimeControl "180+1"]
[EndTime "9:11:36 PST"]
[Termination "Game drawn by repetition"]

1. d4 {[%clk 0:03:00.9]} 1... Nf6 {[%clk 0:02:58.8]} 2. Nc3 {[%clk 0:03:01.6]}
2... g6 {[%clk 0:02:54.7]} 3. Bf4 {[%clk 0:03:01.2]} 3... Bg7 {[%clk 0:02:53.6]}
4. e3 {[%clk 0:03:01.5]} 4... d6 {[%clk 0:02:52]} 5. h4 {[%clk 0:03:01.9]} 5...
O-O {[%clk 0:02:34.1]} 6. h5 {[%clk 0:03:02.3]} 6... Nc6 {[%clk 0:02:25.8]} 7.
Nf3 {[%clk 0:02:59.1]} 7... Bg4 {[%clk 0:02:23.3]} 8. hxg6 {[%clk 0:02:58.3]}
8... hxg6 {[%clk 0:02:24.2]} 9. Be2 {[%clk 0:02:53.8]} 9... Re8 {[%clk 0:02:20]}
10. d5 {[%clk 0:02:51.8]} 10... Bxf3 {[%clk 0:02:16.4]} 11. Bxf3 {[%clk
0:02:49.8]} 11... Ne5 {[%clk 0:02:16.4]} 12. Be2 {[%clk 0:02:49.1]} 12... e6
{[%clk 0:02:08.2]} 13. dxe6 {[%clk 0:02:48.5]} 13... Rxe6 {[%clk 0:02:09.1]} 14.
Qd2 {[%clk 0:02:46.8]} 14... d5 {[%clk 0:01:57.1]} 15. O-O-O {[%clk 0:02:46.5]}
15... c6 {[%clk 0:01:56.9]} 16. Bh6 {[%clk 0:02:42.5]} 16... Qf8 {[%clk
0:01:47.5]} 17. f4 {[%clk 0:02:36.4]} 17... Neg4 {[%clk 0:01:41.6]} 18. Bxg7
{[%clk 0:02:33.7]} 18... Kxg7 {[%clk 0:01:41.2]} 19. Bxg4 {[%clk 0:02:20.2]}
19... Nxg4 {[%clk 0:01:42.1]} 20. Rh3 {[%clk 0:02:20.1]} 20... Qc5 {[%clk
0:01:36.7]} 21. f5 {[%clk 0:02:04.8]} 21... gxf5 {[%clk 0:01:23.4]} 22. Na4
{[%clk 0:01:57.5]} 22... Qc4 {[%clk 0:01:21.4]} 23. b3 {[%clk 0:01:55.7]} 23...
Qe4 {[%clk 0:01:19.5]} 24. Rdh1 {[%clk 0:01:50.6]} 24... Qe5 {[%clk 0:01:08.8]}
25. Kb1 {[%clk 0:01:38]} 25... Rh6 {[%clk 0:00:49.2]} 26. Rxh6 {[%clk
0:01:35.7]} 26... Nxh6 {[%clk 0:00:50.1]} 27. e4 {[%clk 0:01:35.9]} 27... f4
{[%clk 0:00:44.1]} 28. exd5 {[%clk 0:01:31.2]} 28... cxd5 {[%clk 0:00:45]} 29.
Nc5 {[%clk 0:01:27]} 29... Qf6 {[%clk 0:00:40.4]} 30. Nd3 {[%clk 0:01:26]} 30...
Qd4 {[%clk 0:00:15.3]} 31. Qe2 {[%clk 0:01:19.4]} 31... Rh8 {[%clk 0:00:08.7]}
32. Qh5 {[%clk 0:01:18]} 32... Qf6 {[%clk 0:00:07.5]} 33. Ne5 {[%clk 0:01:11.1]}
33... Kg8 {[%clk 0:00:02.6]} 34. Nf3 {[%clk 0:00:41.2]} 34... Qg6 {[%clk
0:00:01.9]} 35. Qxd5 {[%clk 0:00:39.2]} 35... Kg7 {[%clk 0:00:02.5]} 36. Rh5
{[%clk 0:00:31.6]} 36... Qf6 {[%clk 0:00:02.7]} 37. Rg5+ {[%clk 0:00:30.9]}
37... Kf8 {[%clk 0:00:02.2]} 38. Qc5+ {[%clk 0:00:28.3]} 38... Qe7 {[%clk
0:00:02.7]} 39. Qc8+ {[%clk 0:00:24.3]} 39... Qe8 {[%clk 0:00:02.5]} 40. Qc7
{[%clk 0:00:23.8]} 40... Rg8 {[%clk 0:00:02.1]} 41. Re5 {[%clk 0:00:20.6]} 41...
Qc6 {[%clk 0:00:01.5]} 42. Qd8+ {[%clk 0:00:19.4]} 42... Kg7 {[%clk 0:00:02]}
43. Qd4 {[%clk 0:00:15.8]} 43... Kh7 {[%clk 0:00:01.7]} 44. Ng5+ {[%clk
0:00:15.5]} 44... Kg6 {[%clk 0:00:02.3]} 45. Qd3+ {[%clk 0:00:14.4]} 45... f5
{[%clk 0:00:01.8]} 46. Re6+ {[%clk 0:00:12]} 46... Kxg5 {[%clk 0:00:02.4]} 47.
Rxc6 {[%clk 0:00:12.2]} 47... bxc6 {[%clk 0:00:03.3]} 48. Qc4 {[%clk 0:00:10.8]}
48... Rg6 {[%clk 0:00:03.4]} 49. a4 {[%clk 0:00:10.2]} 49... Kh5 {[%clk
0:00:03.4]} 50. Qxf4 {[%clk 0:00:09.9]} 50... Rxg2 {[%clk 0:00:03.5]} 51. Qf3+
{[%clk 0:00:10]} 51... Rg4 {[%clk 0:00:04.3]} 52. Qxc6 {[%clk 0:00:10.1]} 52...
f4 {[%clk 0:00:04.3]} 53. b4 {[%clk 0:00:09.8]} 53... Rg3 {[%clk 0:00:03.8]} 54.
Qe8+ {[%clk 0:00:08.7]} 54... Kg5 {[%clk 0:00:03.9]} 55. Qe5+ {[%clk 0:00:07.8]}
55... Kg4 {[%clk 0:00:03.8]} 56. Qe6+ {[%clk 0:00:07.8]} 56... Kg5 {[%clk
0:00:04]} 57. Qd5+ {[%clk 0:00:07.4]} 57... Nf5 {[%clk 0:00:04]} 58. Qg8+ {[%clk
0:00:06.3]} 58... Kh4 {[%clk 0:00:04.3]} 59. Qh7+ {[%clk 0:00:06.5]} 59... Kg4
{[%clk 0:00:05.2]} 60. Qg6+ {[%clk 0:00:06.6]} 60... Kf3 {[%clk 0:00:04.2]} 61.
Qxf5 {[%clk 0:00:07.3]} 61... Ke3 {[%clk 0:00:04.6]} 62. b5 {[%clk 0:00:07.5]}
62... f3 {[%clk 0:00:05.2]} 63. Qe5+ {[%clk 0:00:08]} 63... Kf2 {[%clk
0:00:05.6]} 64. a5 {[%clk 0:00:08.4]} 64... Kg2 {[%clk 0:00:05.5]} 65. Qe4
{[%clk 0:00:08.1]} 65... Kg1 {[%clk 0:00:04.8]} 66. Qe3+ {[%clk 0:00:04.8]}
66... Kg2 {[%clk 0:00:04.5]} 67. b6 {[%clk 0:00:04.8]} 67... axb6 {[%clk
0:00:05]} 68. axb6 {[%clk 0:00:05.7]} 68... f2 {[%clk 0:00:05.6]} 69. Qe4+
{[%clk 0:00:05.8]} 69... Kg1 {[%clk 0:00:05.5]} 70. Qd4 {[%clk 0:00:05.6]} 70...
Kg2 {[%clk 0:00:04.4]} 71. Qd2 {[%clk 0:00:05.3]} 71... Kg1 {[%clk 0:00:04.3]}
72. Qd4 {[%clk 0:00:05.1]} 72... Kg2 {[%clk 0:00:04.5]} 73. Qd2 {[%clk
0:00:04.2]} 73... Kg1 {[%clk 0:00:04.7]} 74. Qd4 {[%clk 0:00:03.6]} 1/2-1/2